bitfinex/quotes_BTCUSD_20220304
["timestamp","ask_amount","ask_price","bid_price","bid_amount"]
[1646388194613,0.01,41579.0,41574.0,0.36564]
[1646388194814,0.01,41579.0,41574.0,0.41564]
[1646388195418,0.01,41579.0,41576.0,0.013446]
[1646388195869,0.01,41579.0,41576.0,0.063446]
[1646388196270,0.01,41579.0,41577.0,0.36015]
[1646388196470,0.01,41579.0,41578.0,0.665603]
[1646388196673,0.01,41579.0,41578.0,0.715603]
[1646388197970,0.31725602,41586.0,41579.0,1.25]
[1646388198170,0.15,41587.0,41580.0,0.133733]
[1646388198374,2.12191584,41593.0,41581.0,0.3]
[1646388198570,0.15,41590.0,41587.0,0.17076996]
[1646388198771,0.15,41590.0,41582.0,0.61316827]
[1646388198772,0.15,41596.0,41588.0,0.363437]
[1646388199271,0.21155704,41593.0,41588.0,0.363437]
[1646388199472,0.21155704,41593.0,41589.0,0.3]
[1646388199712,0.21155704,41593.0,41590.0,0.415485]
[1646388200310,0.21155704,41593.0,41591.0,0.01002582]
[1646388200718,0.21155704,41593.0,41590.0,0.29]
[1646388200719,0.2801338,41593.0,41590.0,0.29]
[1646388200917,0.17642434,41592.0,41590.0,0.29]
[1646388201210,0.38693139,41591.0,41590.0,0.24]
[1646388201416,0.75263739,41591.0,41590.0,0.1898]
[1646388201611,1.4,41590.0,41580.0,0.120304]
[1646388201817,0.15,41581.0,41577.0,0.01435738]
[1646388202013,0.07452058,41583.0,41570.0,0.01206288]
[1646388202014,0.15,41578.0,41570.0,0.01206288]
[1646388202213,0.15,41573.0,41571.0,0.0122114]
[1646388202412,0.15,41573.0,41570.0,0.07478843]
[1646388202612,0.2399613,41574.0,41571.0,0.365706]
[1646388202814,0.33728113,41573.0,41570.0,0.07478843]
[1646388203112,0.15,41573.0,41570.0,0.12478843]
[1646388203361,0.15,41573.0,41570.0,0.110172]
[1646388203862,0.145,41573.0,41570.0,0.110172]
[1646388204062,0.3,41577.0,41570.0,0.110172]
[1646388204262,0.3481,41577.0,41570.0,0.110172]
[1646388204664,0.0481,41577.0,41570.0,0.110172]
[1646388205268,0.0481,41577.0,41570.0,0.12134729]
[1646388205464,0.145,41576.0,41572.0,0.01434997]
[1646388205665,0.145,41576.0,41573.0,0.365706]
[1646388205865,0.145,41576.0,41575.0,0.365706]
[1646388206070,0.32403,41582.0,41571.0,0.19305969]
[1646388206071,0.145,41579.0,41576.0,0.01337]
[1646388206266,0.27565981,41582.0,41577.0,0.060157]
[1646388206566,0.145,41578.0,41577.0,0.060157]
[1646388206765,0.145,41578.0,41577.0,0.110157]
[1646388206967,0.145,41578.0,41577.0,0.475863]
[1646388207211,0.0481,41584.0,41577.0,0.110157]
[1646388207610,0.0481,41584.0,41580.0,0.18303217]
[1646388207813,0.197761,41588.0,41578.0,0.486023]
[1646388207816,0.145,41583.0,41578.0,0.486023]
[1646388208012,0.541,41592.0,41578.0,0.786023]
[1646388208013,0.145,41585.0,41578.0,0.786023]
[1646388208212,0.145,41585.0,41580.0,0.013337]
[1646388208812,0.145,41585.0,41583.0,0.365659]
[1646388210312,0.34371316,41585.0,41583.0,0.365659]
[1646388210613,0.145,41585.0,41583.0,0.365659]
[1646388211267,0.145,41585.0,41583.0,0.605659]
[1646388212065,0.145,41585.0,41584.0,0.013333]
[1646388212266,0.145,41585.0,41584.0,0.365706]
[1646388213068,0.145,41585.0,41583.0,0.24]
[1646388215515,0.365706,41584.0,41583.0,0.24]
[1646388215715,0.145,41585.0,41583.0,0.24]
[1646388216117,0.36400202,41585.0,41583.0,0.24]
[1646388216316,0.145,41585.0,41583.0,0.24]
[1646388217516,0.31292041,41585.0,41583.0,0.24]
[1646388217918,0.365706,41584.0,41583.0,0.24]
[1646388218115,0.145,41585.0,41583.0,0.24]
[1646388220461,0.145,41585.0,41583.0,0.25207804]
[1646388220659,0.145,41585.0,41583.0,0.24]
[1646388221663,0.145,41585.0,41583.0,0.25159957]
[1646388221863,0.14460242,41584.0,41583.0,0.25159957]
[1646388222130,0.14460242,41584.0,41583.0,0.24]
[1646388224732,0.14460242,41584.0,41583.0,0.24024052]
[1646388225133,0.14460242,41584.0,41583.0,0.25269183]
[1646388226171,0.14460242,41584.0,41583.0,0.24024052]
[1646388227472,0.14460242,41584.0,41583.0,0.25057384]
[1646388227671,0.14460242,41584.0,41583.0,0.60594652]
[1646388227872,0.14460242,41592.0,41583.0,0.24024051]
[1646388228071,0.14460242,41592.0,41585.0,0.120292]
[1646388228272,0.14396172,41592.0,41586.0,0.05]
[1646388228471,0.19808035,41593.0,41580.0,0.3]
[1646388228472,0.14396172,41589.0,41580.0,0.3]
[1646388228673,0.20981676,41577.0,41573.0,0.199]
[1646388228873,0.20981676,41577.0,41576.0,0.00024051]
[1646388229073,0.20981676,41577.0,41576.0,0.01362051]
[1646388229474,0.0481,41591.0,41578.0,0.120295]
[1646388229475,0.14396172,41585.0,41578.0,0.120295]
[1646388229713,0.14396172,41585.0,41579.0,0.715661]
[1646388230113,0.14396172,41585.0,41579.0,0.35]
[1646388230312,0.14396172,41585.0,41580.0,0.365706]
[1646388231514,0.14396172,41585.0,41580.0,0.605706]
[1646388232121,0.14396172,41585.0,41581.0,0.365706]
[1646388232617,0.14396172,41585.0,41581.0,0.415706]
[1646388232816,0.14396172,41585.0,41582.0,0.01444045]
[1646388233117,0.14396172,41585.0,41584.0,0.01124985]
[1646388233365,0.14396172,41585.0,41581.0,0.365706]
[1646388233565,0.19808035,41590.0,41585.0,0.365706]
[1646388233765,0.14396172,41592.0,41590.0,0.01326]
[1646388233966,0.2958,41595.0,41591.0,0.00024047]
[1646388233967,0.43976172,41595.0,41591.0,0.00024047]
[1646388234165,0.14396172,41595.0,41594.0,0.00024047]
[1646388234565,0.14396172,41595.0,41594.0,0.36594647]
[1646388234966,0.14396172,41595.0,41594.0,0.41594647]
[1646388235568,0.19808035,41599.0,41594.0,0.05024047]
[1646388235768,0.19808035,41598.0,41595.0,0.365706]
[1646388236068,0.19808035,41599.0,41597.0,0.060128]
[1646388236269,0.19808035,41601.0,41598.0,0.665706]
[1646388236468,0.19808035,41602.0,41598.0,0.785942]
[1646388236867,0.19808035,41603.0,41598.0,0.785942]
[1646388237120,0.19808035,41603.0,41598.0,0.835942]
[1646388237723,0.19808035,41603.0,41598.0,0.535942]
[1646388237924,0.19808035,41602.0,41598.0,0.535942]
[1646388238722,0.19808035,41603.0,41598.0,0.535942]
[1646388238921,0.19808035,41603.0,41599.0,0.01503404]
[1646388239125,0.19808035,41603.0,41600.0,0.02337094]
[1646388239327,0.47574991,41608.0,41600.0,0.133374]
[1646388239328,0.19808035,41604.0,41600.0,0.133374]
[1646388239526,0.19808035,41603.0,41601.0,0.06388875]
[1646388239726,0.19808035,41603.0,41600.0,0.0705194]
[1646388239929,0.19808035,41603.0,41601.0,0.365706]
[1646388240867,0.19808035,41603.0,41598.0,0.05]
[1646388241068,0.19808035,41601.0,41591.0,0.21633996]
[1646388241269,0.19808035,41601.0,41588.0,0.01133735]
[1646388241468,0.19808035,41601.0,41589.0,0.365706]
[1646388241469,0.19808035,41598.0,41589.0,0.365706]
[1646388241668,0.19808035,41599.0,41589.0,0.38079683]
[1646388241869,0.15577065,41597.0,41589.0,0.01261791]
[1646388242267,0.15577065,41597.0,41589.0,0.25105891]
[1646388242469,0.353851,41597.0,41589.0,0.25105891]
[1646388243071,0.353851,41597.0,41589.0,0.24]
[1646388243268,0.353851,41597.0,41589.0,0.25108781]
[1646388243469,0.353851,41597.0,41590.0,0.01062035]
[1646388243869,0.19808035,41597.0,41590.0,0.01062035]
[1646388244271,0.19808035,41597.0,41590.0,0.07075635]
[1646388244470,0.18488281,41598.0,41591.0,0.01387437]
[1646388244722,0.19808035,41600.0,41590.0,0.060136]
[1646388244926,0.19808035,41601.0,41592.0,0.01456584]
[1646388245124,0.19808035,41601.0,41591.0,0.120256]
[1646388245325,0.19808035,41602.0,41596.0,0.013184]
[1646388245523,0.19808035,41604.0,41597.0,0.02256705]
[1646388245724,0.19808035,41605.0,41599.0,0.22270665]
[1646388246023,0.19808035,41607.0,41600.0,0.13167737]
[1646388246224,0.19808035,41607.0,41601.0,0.06419848]
[1646388246427,0.19808035,41607.0,41602.0,0.01037061]
[1646388246622,0.19808035,41607.0,41603.0,0.01436065]
[1646388246823,0.19808035,41607.0,41605.0,0.01366392]
[1646388247023,0.19808035,41607.0,41606.0,0.01181705]
[1646388247223,0.19808035,41607.0,41596.0,0.01296607]
[1646388247224,0.39987571,41607.0,41596.0,0.01493837]
[1646388247524,0.19941703,41603.0,41596.0,0.06493837]
[1646388247727,0.19941703,41603.0,41597.0,0.37908826]
[1646388247925,0.19941703,41603.0,41598.0,0.01069151]
[1646388248126,0.1983691,41605.0,41599.0,0.01335968]
[1646388248360,0.1983691,41606.0,41601.0,0.01418001]
[1646388248765,0.1983691,41605.0,41602.0,0.01012079]
[1646388248960,0.1983691,41605.0,41597.0,0.05]
[1646388249161,0.1983691,41604.0,41597.0,0.05]
[1646388249762,0.1983691,41603.0,41596.0,0.110127]
[1646388250763,0.1983691,41603.0,41597.0,0.365706]
[1646388250964,0.1983691,41603.0,41596.0,0.110127]
[1646388251164,0.1983691,41603.0,41596.0,0.05]
[1646388251463,0.1983691,41603.0,41597.0,0.05]
[1646388251864,0.1983691,41603.0,41597.0,0.365706]
[1646388252315,0.1983691,41603.0,41598.0,0.365706]
[1646388252520,0.1933691,41604.0,41598.0,0.485943]
[1646388252716,0.1933691,41604.0,41598.0,0.535943]
[1646388253121,0.24760043,41607.0,41598.0,0.535943]
[1646388253318,0.24760043,41607.0,41598.0,0.7228292]
[1646388253518,0.14396172,41604.0,41599.0,0.365706]
[1646388253819,0.14396172,41604.0,41598.0,0.170237]
[1646388254418,0.14396172,41604.0,41599.0,0.365706]
[1646388254617,0.24760043,41607.0,41598.0,0.170237]
[1646388254816,0.39156215,41607.0,41598.0,0.170237]
[1646388255217,0.26982747,41605.0,41598.0,0.170237]
[1646388255422,0.14396172,41604.0,41599.0,0.365706]
[1646388255618,0.14396172,41604.0,41598.0,0.170237]
[1646388256064,0.14396172,41604.0,41600.0,0.365706]
[1646388256266,0.14396172,41604.0,41599.0,0.365706]
[1646388256465,0.14396172,41604.0,41599.0,0.57191859]
[1646388256666,0.14396172,41605.0,41599.0,0.365706]
[1646388257267,0.12396172,41605.0,41598.0,0.170237]
[1646388257466,0.12396172,41605.0,41599.0,0.365706]
[1646388258070,0.12396172,41605.0,41600.0,0.060118]
[1646388258368,0.12396172,41605.0,41601.0,0.013112]
[1646388258867,0.37156215,41608.0,41599.0,0.21563088]
[1646388259270,0.37156215,41608.0,41601.0,0.3769484]
[1646388259469,0.12396172,41608.0,41601.0,0.0113334]
[1646388260615,0.12396172,41608.0,41602.0,0.365615]
[1646388260813,0.12396172,41608.0,41602.0,0.01071176]
[1646388261014,0.12396172,41608.0,41603.0,0.01407904]
[1646388261213,0.12396172,41608.0,41605.0,0.01261159]
[1646388261412,0.00380704,41603.0,41602.0,0.29]
[1646388261612,0.00380704,41603.0,41602.0,0.655615]
[1646388262614,0.24380705,41603.0,41602.0,0.655615]
[1646388262812,0.24380705,41603.0,41602.0,0.805615]
[1646388263215,0.24380705,41603.0,41602.0,1.0106924]
[1646388264467,0.24380705,41603.0,41602.0,1.1406924]
[1646388264664,0.24380705,41603.0,41602.0,0.805615]
[1646388264863,0.24380705,41603.0,41602.0,0.705615]
[1646388265064,0.24380705,41603.0,41602.0,0.655615]
[1646388266366,0.66776877,41603.0,41602.0,0.24]
[1646388266569,1.08148377,41603.0,41602.0,0.24]
[1646388266966,1.2798236,41603.0,41602.0,0.24]
[1646388267214,1.2748236,41603.0,41602.0,0.24]
[1646388267414,1.07648377,41603.0,41602.0,0.24]
[1646388267614,1.13662277,41603.0,41602.0,0.24]
[1646388268714,1.3842232,41603.0,41602.0,0.24]
[1646388268914,1.3842232,41603.0,41602.0,0.29]
[1646388270423,1.3842232,41603.0,41602.0,0.05]
[1646388270621,0.060152,41595.0,41582.0,0.339581]
[1646388270879,0.12396172,41591.0,41582.0,0.120281]
[1646388271071,0.0481,41590.0,41582.0,0.120281]
[1646388271670,0.0481,41590.0,41588.0,0.24]
[1646388272270,0.0481,41590.0,41589.0,0.01363979]
[1646388273068,0.0481,41590.0,41582.0,0.120281]
[1646388273268,0.12396172,41587.0,41583.0,0.365615]
[1646388273671,0.12396172,41587.0,41584.0,0.05]
[1646388273969,0.12396172,41587.0,41585.0,0.415615]
[1646388275215,0.12396172,41587.0,41586.0,0.02404742]
[1646388275413,0.12396172,41588.0,41586.0,0.02404742]
[1646388275613,0.12396172,41588.0,41587.0,0.02404742]
[1646388275813,0.0481,41590.0,41587.0,0.02404742]
[1646388276015,0.0481,41590.0,41589.0,0.02404742]
[1646388277017,0.04770247,41590.0,41589.0,0.02404742]
[1646388278372,0.04770247,41590.0,41587.0,0.11014]
[1646388278575,0.04770247,41590.0,41588.0,0.365615]
[1646388278772,0.0481,41595.0,41588.0,0.425755]
[1646388278973,0.0431,41595.0,41588.0,0.425755]
[1646388279274,0.12396172,41593.0,41590.0,0.365615]
[1646388279673,0.12396172,41593.0,41590.0,0.415615]
[1646388279873,0.0431,41595.0,41591.0,0.365615]
[1646388280273,0.0431,41595.0,41591.0,0.415615]
[1646388280474,0.0431,41595.0,41592.0,0.365615]
[1646388280877,0.0431,41595.0,41592.0,0.05]
[1646388281178,0.0431,41595.0,41588.0,0.11014]
[1646388281379,0.0431,41595.0,41589.0,0.365615]
[1646388281577,0.0431,41595.0,41589.0,0.415615]
[1646388282114,0.0431,41595.0,41591.0,0.365615]
[1646388282513,0.0431,41595.0,41590.0,0.05]
[1646388282714,0.0431,41595.0,41591.0,0.05]
[1646388282914,0.0431,41595.0,41588.0,0.06014]
[1646388283132,0.12396172,41597.0,41589.0,0.37570925]
[1646388283319,0.25317762,41600.0,41590.0,0.120262]
[1646388283517,0.25317762,41600.0,41591.0,0.3118229]
[1646388283818,0.25317762,41600.0,41592.0,0.01016963]
[1646388284015,0.25317762,41600.0,41594.0,0.0149111]
[1646388284215,0.05474759,41600.0,41595.0,0.01237107]
[1646388284415,0.05474759,41600.0,41596.0,0.01119378]
[1646388284615,0.05474759,41600.0,41597.0,0.01207263]
[1646388284816,0.05474759,41600.0,41598.0,0.01098087]
[1646388285014,0.05474759,41600.0,41599.0,0.0141569]
[1646388285216,0.05474759,41600.0,41596.0,0.002]
[1646388285866,0.12396172,41598.0,41596.0,0.002]
[1646388286466,0.25317762,41600.0,41595.0,0.060128]
[1646388286664,0.05474759,41600.0,41596.0,0.05]
[1646388287062,0.05474759,41600.0,41595.0,0.060128]
[1646388287262,0.05474759,41600.0,41595.0,0.062128]
[1646388287665,0.05474759,41600.0,41596.0,0.05]
[1646388288068,0.17870931,41600.0,41596.0,0.05]
[1646388288263,0.17870931,41600.0,41595.0,0.062128]
[1646388288663,0.17870931,41600.0,41595.0,0.060128]
[1646388288863,0.17870931,41600.0,41594.0,0.05]
[1646388289067,0.17870931,41600.0,41590.0,0.0005329]
[1646388289264,0.17870931,41600.0,41594.0,0.002]
[1646388289465,0.05474759,41600.0,41594.0,0.002]
[1646388289730,0.05474759,41600.0,41595.0,0.425743]
[1646388290328,0.05474759,41600.0,41595.0,0.475743]
[1646388290729,0.05474759,41600.0,41599.0,0.16974436]
[1646388290927,0.05474759,41600.0,41598.0,0.120232]
[1646388291128,0.05474759,41600.0,41599.0,0.365615]
[1646388291338,0.05474759,41600.0,41599.0,0.415615]
[1646388292930,0.05474759,41600.0,41599.0,0.60257247]
[1646388293130,0.05474759,41600.0,41599.0,0.90257247]
[1646388293865,0.05474759,41600.0,41599.0,0.60257247]
[1646388294565,0.05474759,41600.0,41599.0,0.415615]
[1646388295168,0.05474759,41600.0,41599.0,0.365615]
[1646388296570,0.04974759,41600.0,41599.0,0.365615]
[1646388297223,0.04974759,41600.0,41599.0,0.05]
[1646388297224,0.26472796,41600.0,41599.0,0.05]
[1646388297624,0.26472796,41600.0,41598.0,0.170232]
[1646388297821,0.26472796,41600.0,41598.0,0.120232]
[1646388298924,0.04974759,41600.0,41599.0,0.365615]
[1646388299122,0.04974759,41600.0,41599.0,0.415615]
[1646388300324,0.04960518,41600.0,41599.0,0.915615]
[1646388301169,0.1735669,41600.0,41599.0,0.915615]
[1646388301365,0.1735669,41600.0,41599.0,0.55]
[1646388301963,0.1735669,41600.0,41599.0,0.915615]
[1646388301964,0.04960518,41600.0,41599.0,0.915615]
[1646388302363,0.04960518,41600.0,41599.0,0.55]
[1646388302764,0.1735669,41600.0,41599.0,0.55]
[1646388302962,0.04960518,41600.0,41599.0,0.55]
[1646388303662,0.05020518,41600.0,41599.0,0.55]
[1646388304065,0.1741669,41600.0,41599.0,0.55]
[1646388305820,0.05020518,41600.0,41599.0,0.55]
[1646388306018,0.05020518,41600.0,41599.0,0.915615]
[1646388308019,0.05020518,41600.0,41599.0,1.415615]
[1646388309171,0.05020518,41600.0,41599.0,1.59993572]
[1646388309371,0.05020518,41600.0,41599.0,1.415615]
[1646388309672,0.05020518,41600.0,41599.0,1.545615]
[1646388309877,0.03750518,41600.0,41599.0,1.545615]
[1646388310076,0.03750518,41600.0,41599.0,1.415615]
[1646388312920,0.03750518,41600.0,41599.0,0.609455]
[1646388313117,0.03750518,41600.0,41595.0,0.044409]
[1646388313118,0.88010028,41600.0,41595.0,0.044409]
[1646388313319,0.88010028,41600.0,41589.0,0.1998]
[1646388313320,0.12396172,41596.0,41586.0,0.290462]
[1646388313518,0.51447828,41600.0,41585.0,0.4151]
[1646388313519,0.12396172,41591.0,41585.0,0.4151]
[1646388313719,0.12396172,41588.0,41585.0,0.4151]
[1646388313922,0.12396172,41588.0,41576.0,0.05]
[1646388313923,0.88550973,41586.0,41576.0,0.05]
[1646388314119,0.12396172,41577.0,41572.0,0.19205826]
[1646388314320,0.07213,41585.0,41570.0,0.00120279]
[1646388314321,0.12396172,41573.0,41570.0,0.00120279]
[1646388314520,0.0481,41575.0,41572.0,0.00091415]
[1646388314719,0.01983689,41573.0,41570.0,0.00120279]
[1646388314919,0.01983689,41573.0,41571.0,0.109681]
[1646388315122,0.01983689,41573.0,41571.0,0.28135162]
[1646388315519,0.01983689,41573.0,41572.0,0.20310295]
[1646388315719,0.01983689,41573.0,41572.0,0.31277895]
[1646388315967,0.01983689,41573.0,41572.0,0.109676]
[1646388316164,0.01983689,41573.0,41565.0,0.66137691]
[1646388316363,0.01983689,41567.0,41565.0,0.4151]
[1646388316563,0.01983689,41569.0,41566.0,0.109694]
[1646388317062,0.01983689,41569.0,41567.0,0.2778852]
[1646388317263,0.01983689,41569.0,41568.0,0.109694]
[1646388317463,0.01983689,41569.0,41568.0,0.109693]
[1646388317671,0.01983689,41571.0,41569.0,0.109689]
[1646388318064,0.01983689,41571.0,41567.0,0.1681872]
[1646388318363,0.0481,41570.0,41567.0,0.1681872]
[1646388319062,0.06793689,41570.0,41567.0,0.1681872]
[1646388319263,0.06793689,41570.0,41567.0,0.2181872]
[1646388322318,0.06793689,41570.0,41567.0,0.1681872]
[1646388323374,0.06793689,41570.0,41566.0,0.060175]
[1646388323375,0.01034759,41568.0,41562.0,0.060185]
[1646388323574,0.060185,41573.0,41562.0,0.060185]
[1646388323575,0.0481,41573.0,41562.0,0.060185]
[1646388323775,0.0481,41573.0,41562.0,0.110185]
[1646388323974,0.01034759,41567.0,41562.0,0.110185]
[1646388324376,0.01034759,41567.0,41566.0,0.18982535]
[1646388324575,0.01034759,41567.0,41566.0,0.23982535]
[1646388326079,0.0481,41573.0,41566.0,0.23982535]
[1646388326080,0.01034759,41570.0,41566.0,0.23982535]
[1646388326278,0.01034759,41570.0,41567.0,0.109699]
[1646388326483,0.01034759,41570.0,41568.0,0.109693]
[1646388326678,0.01034759,41570.0,41568.0,0.230021]
[1646388326879,0.01034759,41570.0,41569.0,0.159689]
[1646388327918,0.0481,41573.0,41569.0,0.159689]
[1646388327919,0.01034759,41573.0,41569.0,0.159689]
[1646388328122,0.01034759,41573.0,41572.0,0.15605356]
[1646388328418,0.0481,41577.0,41572.0,0.15605356]
[1646388328419,0.01034759,41577.0,41572.0,0.109676]
[1646388328621,0.0481,41580.0,41569.0,0.05]
[1646388328819,0.01034759,41574.0,41570.0,0.10968]
[1646388329020,0.0481,41580.0,41570.0,0.169843]
[1646388329021,0.01034759,41578.0,41570.0,0.169843]
[1646388329420,0.01034759,41581.0,41580.0,0.21000617]
[1646388329820,0.01034759,41581.0,41580.0,0.26000617]
[1646388330222,0.01034759,41589.0,41580.0,0.26000617]
[1646388330424,0.01034759,41589.0,41580.0,0.76885891]
[1646388330628,0.01034759,41589.0,41581.0,0.109634]
[1646388331170,0.01034759,41589.0,41587.0,0.21875287]
[1646388331571,0.01034759,41589.0,41587.0,0.26875287]
[1646388331970,0.19932643,41595.0,41588.0,0.109609]
[1646388332269,1.07008118,41600.0,41587.0,0.26875287]
[1646388332270,0.01034759,41590.0,41587.0,0.26875287]
[1646388332869,0.01034759,41593.0,41587.0,0.26875287]
[1646388333672,0.01034759,41593.0,41590.0,0.06014]
[1646388334072,0.01034759,41593.0,41587.0,0.26875287]
[1646388334273,0.01034759,41593.0,41587.0,0.05]
[1646388334472,0.20889212,41596.0,41587.0,0.05]
[1646388334720,0.01034759,41589.0,41585.0,0.05]
[1646388335222,0.01034759,41586.0,41582.0,0.05]
[1646388335621,0.01034759,41586.0,41584.0,0.01365518]
[1646388335824,0.01034759,41586.0,41585.0,0.0136479]
[1646388336022,0.01034759,41586.0,41579.0,0.25842809]
[1646388336222,0.108258,41591.0,41579.0,0.25842809]
[1646388336424,0.01034759,41584.0,41582.0,0.060152]
[1646388336622,0.01034759,41588.0,41584.0,0.109624]
[1646388337021,0.37289212,41596.0,41584.0,0.159624]
[1646388337221,0.214005,41594.0,41584.0,0.05]
[1646388337421,0.214005,41594.0,41581.0,0.3]
[1646388337422,0.01034759,41591.0,41589.0,0.15647078]
[1646388337621,0.01034759,41591.0,41589.0,0.20647078]
[1646388338474,0.01034759,41591.0,41590.0,0.109601]
[1646388338668,0.01034759,41593.0,41590.0,0.109601]
[1646388338869,0.03750518,41600.0,41590.0,0.109601]
[1646388339070,0.03750518,41600.0,41589.0,0.26661178]
[1646388339471,0.01034759,41593.0,41589.0,0.26861178]
[1646388339672,0.01034759,41593.0,41590.0,0.109594]
[1646388340075,0.25830693,41599.0,41590.0,0.109594]
[1646388340271,0.01034759,41598.0,41592.0,0.05]
[1646388340471,0.25830693,41599.0,41592.0,0.05]
[1646388340673,0.01034759,41597.0,41592.0,0.05]
[1646388340974,0.01034759,41593.0,41592.0,0.159591]
[1646388341172,0.25830693,41599.0,41592.0,0.05]
[1646388341371,0.18973318,41595.0,41592.0,0.05]
[1646388342420,0.01034759,41595.0,41592.0,0.05]
[1646388343219,0.01034759,41595.0,41585.0,0.420284]
[1646388343419,0.01034759,41595.0,41586.0,0.160608]
[1646388343622,0.01034759,41595.0,41589.0,0.109602]
[1646388343842,0.01034759,41595.0,41589.0,0.159601]
[1646388344023,0.01034759,41595.0,41588.0,0.22485659]
[1646388344219,0.01034759,41595.0,41588.0,0.22475046]
[1646388345020,0.01034759,41595.0,41589.0,0.109601]
[1646388345221,0.01034759,41595.0,41588.0,0.22475046]
[1646388345424,0.01034759,41595.0,41589.0,0.109601]
[1646388345871,0.01034759,41595.0,41588.0,0.22475046]
[1646388346071,0.01034759,41595.0,41589.0,0.1230959]
[1646388346274,0.01034759,41591.0,41589.0,0.0134949]
[1646388346871,0.01034759,41591.0,41590.0,0.01350642]
[1646388347072,0.01024487,41591.0,41586.0,0.05]
[1646388347272,0.21931313,41598.0,41588.0,0.19727603]
[1646388347472,0.413722,41597.0,41588.0,0.19727603]
[1646388347672,0.01024487,41589.0,41588.0,0.19727603]
[1646388348473,0.01024487,41589.0,41586.0,0.002]
[1646388348674,0.01024487,41589.0,41585.0,0.120284]
[1646388348878,0.01024487,41594.0,41586.0,0.35]
[1646388349078,0.01024487,41594.0,41587.0,0.109608]
[1646388349276,0.01024487,41594.0,41588.0,0.060141]
[1646388349474,0.01024487,41594.0,41589.0,0.109602]
[1646388349729,0.01024487,41594.0,41589.0,0.22817947]
[1646388349933,0.06024487,41594.0,41589.0,0.18888885]
[1646388350130,0.01024487,41594.0,41589.0,0.18888885]
[1646388352831,0.01024487,41594.0,41582.0,0.3]
[1646388353476,0.01024487,41594.0,41581.0,0.15]
[1646388353675,0.01024487,41594.0,41582.0,0.15691868]
[1646388353878,0.17257021,41592.0,41583.0,0.18765377]
[1646388354077,0.2159264,41591.0,41584.0,0.109622]
[1646388354274,0.27554215,41583.0,41580.0,0.05]
[1646388354475,0.27554215,41583.0,41581.0,0.10963]
[1646388357934,0.27554215,41583.0,41581.0,0.108711]
[1646388360135,0.5,41582.0,41581.0,0.108711]
[1646388362176,0.39820555,41582.0,41581.0,0.108711]
[1646388362675,0.39820555,41582.0,41581.0,0.864841]
[1646388363475,0.39820555,41582.0,41581.0,0.132741]
[1646388364476,0.39880555,41582.0,41581.0,0.132741]
[1646388366526,0.39880555,41582.0,41581.0,0.108711]
[1646388369176,0.69880555,41582.0,41581.0,0.108711]
[1646388369377,0.39880555,41582.0,41581.0,0.108711]
[1646388371075,0.29880555,41582.0,41581.0,0.108711]
[1646388371277,0.29880555,41582.0,41579.0,0.17225283]
[1646388371278,0.50278872,41582.0,41580.0,0.10872]
[1646388371477,0.29880555,41582.0,41580.0,0.10872]
[1646388376685,0.29880555,41582.0,41580.0,0.84082]
[1646388376890,0.29880555,41582.0,41580.0,1.13653899]
[1646388377287,0.29880555,41582.0,41580.0,1.3301003]
[1646388377783,0.29880555,41582.0,41580.0,0.5980003]
[1646388377986,0.29880555,41582.0,41581.0,0.1]
[1646388378185,0.29880555,41582.0,41581.0,0.208717]
[1646388380428,0.29880555,41582.0,41581.0,0.508717]
[1646388381232,0.29880555,41582.0,41581.0,1.240817]
[1646388382231,0.15555629,41582.0,41581.0,1.264847]
[1646388382433,0.15555629,41582.0,41581.0,1.240817]
[1646388382631,0.15555629,41582.0,41581.0,1.25477389]
[1646388383979,0.15555629,41582.0,41581.0,1.36058127]
[1646388384180,0.15555629,41582.0,41581.0,1.65630026]
[1646388384380,0.15555629,41582.0,41581.0,1.64234337]
[1646388384579,0.15555629,41582.0,41581.0,1.4309347]
[1646388384781,0.15555629,41582.0,41581.0,1.41875438]
[1646388385181,0.15555629,41582.0,41581.0,1.58173943]
[1646388385681,0.15555629,41582.0,41581.0,2.02021283]
[1646388386284,0.0006,41582.0,41581.0,2.07021283]
[1646388387333,0.0006,41582.0,41581.0,2.22761814]
[1646388387932,0.0006,41582.0,41581.0,2.23907613]
[1646388388129,0.0006,41582.0,41581.0,2.20358814]
[1646388388529,0.0006,41582.0,41581.0,1.76511474]
[1646388388731,0.0006,41582.0,41581.0,1.74509571]
[1646388388929,0.0006,41582.0,41581.0,1.99499571]
[1646388389330,0.0006,41582.0,41581.0,2.01902571]
[1646388389932,0.0006,41582.0,41581.0,2.46194316]
[1646388390533,0.73799028,41583.0,41581.0,2.46193171]
[1646388390733,0.63781258,41583.0,41582.0,3.30949669]
[1646388390973,0.63781258,41583.0,41582.0,3.52058174]
[1646388391272,0.63781258,41583.0,41582.0,3.62353998]
[1646388391474,0.63781258,41583.0,41582.0,3.27636488]
[1646388391873,0.63781258,41583.0,41582.0,3.6234847]
[1646388392273,0.27554215,41583.0,41582.0,3.6234847]
[1646388392875,0.26245562,41583.0,41582.0,3.6234847]
[1646388393075,0.26245562,41583.0,41582.0,3.5994547]
[1646388395933,0.26245562,41583.0,41582.0,2.1994547]
[1646388396131,0.26245562,41583.0,41582.0,1.99734884]
[1646388396936,0.26245562,41583.0,41582.0,1.69734884]
[1646388397738,0.26245562,41583.0,41582.0,1.44744884]
[1646388398136,0.26245562,41583.0,41582.0,1.74507671]
[1646388398577,0.26245562,41583.0,41582.0,1.99497671]
[1646388398979,0.25745562,41583.0,41582.0,1.85522158]
[1646388399379,0.25745562,41583.0,41582.0,1.55759371]
[1646388399579,0.25745562,41583.0,41582.0,1.39460866]
[1646388399779,0.75745562,41583.0,41582.0,1.39460866]
[1646388399979,0.75688562,41583.0,41582.0,1.39460866]
[1646388400180,0.75672562,41583.0,41582.0,1.39460866]
[1646388400379,0.75672562,41583.0,41582.0,1.25647468]
[1646388400585,1.05672562,41583.0,41582.0,0.840814]
[1646388400780,0.75672562,41583.0,41582.0,0.840814]
[1646388400984,0.91367758,41583.0,41582.0,0.840694]
[1646388402129,0.75672562,41583.0,41582.0,0.840694]
[1646388402329,0.48231316,41583.0,41582.0,0.840694]
[1646388402927,0.48231316,41583.0,41582.0,1.03735555]
[1646388403130,0.48231316,41583.0,41582.0,1.08866251]